{"text_format":"1","workbook":"xlsx","n_sheets":1,"sheets":["offerta economica LOTTO 1"],"not_rendered":{"charts":0,"images":1,"macros":1,"external_links":0,"defined_names":2,"comments":0,"pivot_tables":0},"unopened":[],"bounds":{"document_bytes":16777216,"sheet_cells":100000,"rows_first":2000,"rows_last":500,"rows_between":2000,"halvings":0,"cell_chars":16384,"cell_head_chars":4096},"cells_cut":0,"cells_raw":0,"read":"whole","date_system":"1900"}

{"sheet":"offerta economica LOTTO 1","index":0,"n_rows":242,"n_cols":10,"rows_kept":242,"cut":false,"hidden":false,"merged":[[222,5,222,7],[96,2,96,4],[196,2,196,7],[217,5,217,7],[221,5,221,7],[218,5,218,7],[218,1,218,3],[240,1,240,3],[232,1,232,3],[236,1,236,3],[226,1,226,9],[228,1,228,3],[214,1,214,9],[217,1,217,3],[221,1,221,3],[209,1,209,9],[210,1,210,9],[211,1,211,9],[212,1,212,9],[213,1,213,9],[198,2,198,4],[205,1,205,9],[207,1,207,2],[222,1,222,3],[186,1,186,9],[187,1,187,9],[191,1,191,9],[192,1,192,9],[194,2,194,4],[182,1,182,2],[182,3,182,4],[182,5,182,7],[182,8,182,9],[183,1,183,2],[183,3,183,4],[183,5,183,7],[183,8,183,9],[180,3,180,4],[180,5,180,7],[181,1,181,2],[181,3,181,4],[181,5,181,7],[178,1,178,2],[178,3,178,4],[178,5,178,7],[179,1,179,2],[179,3,179,4],[179,5,179,7],[1,1,1,9],[27,1,27,9],[28,1,28,9],[29,1,29,9],[112,1,112,5],[107,1,107,9],[112,7,112,9],[155,4,155,5],[155,1,155,3],[73,1,73,9],[67,2,67,9],[74,1,74,9],[76,2,76,9],[78,2,78,4],[71,1,71,5],[63,1,63,9],[69,2,69,5],[89,2,89,7],[91,2,91,4],[82,1,82,9],[83,1,83,9],[84,1,84,9],[85,1,85,9],[86,1,86,9],[181,8,181,9],[180,8,180,9],[179,8,179,9],[178,8,178,9],[39,2,39,7],[40,2,40,7],[41,2,41,7],[42,2,42,7],[47,2,47,7],[48,2,48,7],[49,2,49,7],[169,2,169,7],[78,7,78,9],[93,2,93,9],[163,1,163,9],[165,1,165,9],[175,1,175,9],[177,1,177,2],[177,3,177,4],[177,5,177,7],[177,8,177,9],[167,2,167,4],[171,2,171,4],[180,1,180,2],[237,1,237,3],[241,1,241,3],[228,5,228,7],[232,5,232,7],[236,5,236,7],[240,5,240,7],[233,5,233,7],[229,5,229,7],[237,5,237,7],[241,5,241,7],[233,1,233,3],[229,1,229,3]]}
[]
[null,"Procedura aperta di carattere comunitario, ai sensi dell’art. 55, comma 5 del D.lgs. n. 163 del 12/04/2006, suddivisa in quattro lotti, volta all’affidamento dei «Servizi di gestione integrata e recapito della corrispondenza automatizzata dell’INPS»"]
[]
[]
[]
[]
[]
[]
[]
[]
[]
[]
[]
[]
[]
[]
[]
[]
[]
[]
[]
[]
[]
[]
[]
[]
[]
[null,"      ISTITUTO  NAZIONALE  PREVIDENZA  SOCIALE"]
[null,"      Direzione  Centrale  Risorse  Strumentali"]
[null,"     CENTRALE  UNICA  ACQUISTI"]
[]
[]
[]
[]
[]
[]
[]
[]
[]
[null,null,"OFFERTA  ECONOMICA"]
[null,null,"( Allegato 4A  al Disciplinare di Gara )"]
[null,null,"LOTTO 1   -   Servizi di gestione integrata della Corrispondenza "]
[null,null,"Procedura aperta di carattere comunitario, ai sensi dell’art. 55, comma 5, del D.Lgs. 163 del 12 aprile 2006, suddivisa in quattro lotti, volta all’affidamento dei “Servizi di gestione integrata e recapito della corrispondenza automatizzata dell'INPS” "]
[]
[]
[]
[]
[null,null,"Via Ciro il Grande, 21 – 00144 Roma"]
[null,null,"tel. +390659054322 - fax +390659054240"]
[null,null,"C.F. 80078750587 - P.IVA 02121151001"]
[]
[]
[]
[]
[]
[]
[]
[]
[]
[]
[]
[]
[]
[null,"Dichiarazione dell'Offerta economica per il Lotto 1"]
[]
[]
[]
[null,"Il sottoscritto"]
[]
[null,"nato a",null,null,null,null,null,"il"]
[]
[null,"in qualità di rappresentante legale dell'operatore economico:"]
[]
[]
[null,"(denominazione o ragione sociale)"]
[]
[null,"con sede in"]
[]
[null,"p. IVA ",null,null,null,"  C.F."]
[]
[]
[]
[null,"presenta  la  seguente  Offerta Economica  ed  accetta  esplicitamente  ed  incondizionatamente tutte  le  "]
[null,"obbligazioni  e  le  condizioni  contenute  nel  Bando  di  Gara,  nel  Disciplinare  di  Gara,  nel  Capitolato Tecnico,  "]
[null,"nello  Schema  di  Contratto  e  negli  altri  allegati,  dichiarando  di  essere  disposto  ad  assumere  l’affidamento "]
[null,"dei:   “Servizi di gestione integrata e recapito della corrispondenza automatizzata dell'INPS”   "]
[null,"per il  LOTTO 1   -   Servizi di gestione integrata della Corrispondenza "]
[]
[]
[null,null,"OFFERTA  ECONOMICA"]
[]
[null,"in cifre (IVA esclusa)",{"$f":"J156","v":0}]
[]
[null,"in lettere (IVA esclusa)",{"$f":"valoreinlettere(C92)","v":"zero/00"}]
[]
[]
[null,null,"RIBASSO  OFFERTO",null,null,{"$f":"J159","v":1}]
[]
[]
[]
[]
[]
[]
[]
[]
[]
[]
[null,"Scheda  per il calcolo dell'Offerta  economica - Lotto 1"]
[]
[null,"Istruzioni :","inserire esclusivamente le tariffe offerte per ciascun servizio"]
[]
[]
[null,"BASE D'ASTA  LOTTO 1",null,null,null,null,null,"OFFERTA ECONOMICA  LOTTO 1"]
[null,"tipo servizio","Unità di misura","tariffa (IVA esclusa)","Quantità annuale","Valore triennale",null,"Tariffa offerta (IVA esclusa)","valore annuale","valore triennale"]
[null,"Corrispondenza in uscita"]
[null,"Produzione di format, comp. grafica, personal. (pre-processing)","Canone mese",35000,12,{"$f":"D116*E116*3","v":1260000},null,0,{"$f":"E116*H116","v":0},{"$f":"I116*3","v":0}]
[null,"Foglio BN Fronte"]
[null,"Foglio base","Pezzo",0.21990000000000001,1600000,{"$f":"D118*E118*3","v":1055520},null,0,{"$f":"E118*H118","v":0},{"$f":"I118*3","v":0}]
[null,"Foglio aggiuntivo","Pezzo",9.4000000000000004E-3,2300000,{"$f":"D119*E119*3","v":64860},null,0,{"$f":"E119*H119","v":0},{"$f":"I119*3","v":0}]
[null,"Foglio BN Fronte/Retro"]
[null,"Foglio base","Pezzo",0.2276,40000000,{"$f":"D121*E121*3","v":27312000},null,0,{"$f":"E121*H121","v":0},{"$f":"I121*3","v":0}]
[null,"Foglio aggiuntivo","Pezzo",1.8800000000000001E-2,63000000,{"$f":"D122*E122*3","v":3553200},null,0,{"$f":"E122*H122","v":0},{"$f":"I122*3","v":0}]
[null,"Foglio HighLight Color Fronte"]
[null,"Foglio base","Pezzo",0.23899999999999999,10000,{"$f":"D124*E124*3","v":7170},null,0,{"$f":"E124*H124","v":0},{"$f":"I124*3","v":0}]
[null,"Foglio aggiuntivo","Pezzo",2.1999999999999999E-2,30000,{"$f":"D125*E125*3","v":1980},null,0,{"$f":"E125*H125","v":0},{"$f":"I125*3","v":0}]
[null,"Foglio Hight Light Color Fronte/Retro"]
[null,"Foglio base","Pezzo",0.23899999999999999,3000000,{"$f":"D127*E127*3","v":2151000},null,0,{"$f":"E127*H127","v":0},{"$f":"I127*3","v":0}]
[null,"Foglio aggiuntivo","Pezzo",2.1999999999999999E-2,6000000,{"$f":"D128*E128*3","v":396000},null,0,{"$f":"E128*H128","v":0},{"$f":"I128*3","v":0}]
[null,"Foglio quadricromia Fronte"]
[null,"Foglio base","Pezzo",0.26119999999999999,5000,{"$f":"D130*E130*3","v":3918},null,0,{"$f":"E130*H130","v":0},{"$f":"I130*3","v":0}]
[null,"Foglio aggiuntivo","Pezzo",0.04,15000,{"$f":"D131*E131*3","v":1800},null,0,{"$f":"E131*H131","v":0},{"$f":"I131*3","v":0}]
[null,"Foglio quadricromia Fronte/Retro"]
[null,"Foglio base","Pezzo",0.26119999999999999,5000,{"$f":"D133*E133*3","v":3918},null,0,{"$f":"E133*H133","v":0},{"$f":"I133*3","v":0}]
[null,"Foglio aggiuntivo","Pezzo",0.04,15000,{"$f":"D134*E134*3","v":1800},null,0,{"$f":"E134*H134","v":0},{"$f":"I134*3","v":0}]
[null,"Materiali"]
[null,"Busta anonima","Pezzo",0.03,3015000,{"$f":"D136*E136*3","v":271350},null,0,{"$f":"E136*H136","v":0},{"$f":"I136*3","v":0}]
[null,"Busta con personalizzazione","Pezzo",3.3000000000000002E-2,41600000,{"$f":"D137*E137*3","v":4118400},null,0,{"$f":"E137*H137","v":0},{"$f":"I137*3","v":0}]
[null,"Cartolina","Pezzo",6.5799999999999997E-2,24000000,{"$f":"D138*E138*3","v":4737600},null,0,{"$f":"E138*H138","v":0},{"$f":"I138*3","v":0}]
[null,"Digitalizzazione dei ritorni della corrispondenza in uscita"]
[null,"Esiti negativi di recapito (acquisizione immagine + data-entry)","Pezzo",0.12989999999999999,4000000,{"$f":"D140*E140*3","v":1558799.9999999998},null,0,{"$f":"E140*H140","v":0},{"$f":"I140*3","v":0}]
[null,"Avvisi di ricevimento (acquisizione immagine + data-entry)","Pezzo",8.1900000000000001E-2,17000000,{"$f":"D141*E141*3","v":4176900},null,0,{"$f":"E141*H141","v":0},{"$f":"I141*3","v":0}]
[null,"Normalizzazione indirizzi Corrispondenza in uscita"]
[null,"Normalizzazione","Indirizzo",0.01,10000000,{"$f":"D143*E143*3","v":300000},null,0,{"$f":"E143*H143","v":0},{"$f":"I143*3","v":0}]
[null,"Archiviazione ottica Corrispondenza in uscita"]
[null,"Archiviazione ottica delle immagini","pezzo anno",8.0999999999999996E-3,680000000,{"$f":"D145*E145*3","v":16524000},null,0,{"$f":"E145*H145","v":0},{"$f":"I145*3","v":0}]
[null,"Conservazione a norma delle ricevute di ritorno","pezzo anno",0.01,135000000,{"$f":"D146*E146*3","v":4050000},null,0,{"$f":"E146*H146","v":0},{"$f":"I146*3","v":0}]
[null,"Stoccaggio dei ritorni e relativa gestione"]
[null,"Presa in carico del volume dei ritorni precedentemente stoccato","Pezzo",1.4E-3,200000000,{"$f":"D148*E148*3","v":840000},null,0,{"$f":"E148*H148","v":0},{"$f":"I148*3","v":0}]
[null,"Stoccaggio generato nel corso di vigenza contrattuale","Pezzo anno",1E-3,24000000,{"$f":"D149*E149*3","v":72000},null,0,{"$f":"E149*H149","v":0},{"$f":"I149*3","v":0}]
[null,"Recupero on demand","Pezzo spedito",5.6,10000,{"$f":"D150*E150*3","v":168000},null,0,{"$f":"E150*H150","v":0},{"$f":"I150*3","v":0}]
[null,"Attività trasversali ai Servizi "]
[null,"Supporto consulenziale, organizzativo e tecnologico ed informatico","Canone mese",20000,12,{"$f":"D152*E152*3","v":720000},null,0,{"$f":"E152*H152","v":0},{"$f":"I152*3","v":0}]
[null,"Digitalizzazione comunicazioni con informazioni base","Documento",{"$f":"1.08","v":1.08},2000000,{"$f":"D153*E153*3","v":6480000},null,0,{"$f":"E153*H153","v":0},{"$f":"I153*3","v":0}]
[null,"Digitalizzazione comunicazioni con informazioni avanzate","Documento",{"$f":"(1.08+0.38)","v":1.46},1000000,{"$f":"D154*E154*3","v":4380000},null,0,{"$f":"E154*H154","v":0},{"$f":"I154*3","v":0}]
[]
[null,"BASE D'ASTA  LOTTO 1",null,null,{"$f":"SUM(F116:F154)","v":84210216},null,null,"OFFERTA ECONOMICA  LOTTO 1",null,{"$f":"SUM(J116:J154)","v":0}]
[]
[]
[null,null,null,null,null,null,null,"Ribasso offerto",null,{"$f":"(E156-J156)/E156","v":1}]
[]
[]
[]
[]
[null,"COSTO DEL PERSONALE"]
[]
[null,"Valutato sulla base dei minimi salariali definiti dalla contrattazione collettiva nazionale di settore tra le organizzazioni sindacali dei lavoratori e le organizzazioni dei datori di lavoro comparativamente più rappresentative sul piano nazionale e delle voci retributive previste dalla contrattazione integrativa di secondo livello"]
[]
[null,"(in cifre)"]
[]
[null,"(in lettere)"]
[]
[null,null,"gli importi sono IVA esclusa"]
[]
[]
[]
[null,"Declaratoria obbligatoria dei  CONTRATTI  COLLETTIVI  NAZIONALI, della CONTRATTAZIONE INTEGRATIVA DI SECONDO LIVELLO e degli ACCORDI COLLETTIVI applicati al personale preposto all'Appalto"]
[]
[null,"Tipologia, settore e denominazione della fonte di contrattazione collettiva  e di contrattazione integrativa di secondo livello",null,"Data di stipula",null,"Rinnovo (eventuale)",null,null,"Data di efficacia finale"]
[]
[]
[]
[]
[]
[]
[]
[]
[null,"Dichiara che beneficia di sgravi salariali applicati al personale preposto all’appalto in virtù dei seguenti riferimenti normativi e regolamentari:"]
[]
[]
[]
[]
[null,"COSTI  IN MATERIA DI SALUTE E SICUREZZA"]
[null,"Costi per le misure di adempimento delle disposizioni in materia di salute e sicurezza nei luoghi di lavoro"]
[]
[null,"(in cifre)"]
[]
[null,"(in lettere)"]
[]
[null,null,"gli importi sono IVA esclusa"]
[]
[]
[]
[]
[]
[]
[null,"DICHIARAZIONI"]
[]
[null,"   Il sottoscritto dichiara inoltre che:"]
[]
[null,"    la presente offerta è irrevocabile ed impegnativa sino al 180° (centottantesimo) giorno successivo alla data di scadenza del termine di presentazione;"]
[null,"    è consapevole che, in caso di indicazione di offerta recante un numero di cifre decimali dopo la virgola superiore a due, saranno considerate esclusivamente le prime due cifre decimali, senza procedere ad alcun arrotondamento;"]
[null,"    è consapevole che in caso di discordanza tra i prezzi unitari e il valore complessivamente offerto, i prezzi unitari prevarranno sul valore complessivo e, di conseguenza, si provvederà a rideterminare l’esatto valore complessivo, fermi restando i prezzi unitari offerti; "]
[null,"    è consapevole che i prezzi offerti sono omnicomprensivi di quanto previsto negli atti di gara e, comunque, i corrispettivi spettanti in caso di aggiudicazione rispettano le disposizioni vigenti in materia di costo del lavoro e di costi della sicurezza, secondo i valori sopra esposti;"]
[null,"    è consapevole che detta offerta non vincolerà in alcun modo l’Istituto;"]
[null,"    ha preso cognizione di tutte le circostanze generali e speciali che possono interessare l’esecuzione di tutte le prestazioni oggetto del contratto, e di tali circostanze ha tenuto conto nella determinazione del prezzo offerto, ritenuto remunerativo."]
[]
[]
[]
[null,"luogo",null,null,null,"data"]
[]
[]
[]
[null,"operatore economico",null,null,null,"sottoscrizione"]
[]
[]
[]
[null,"( in caso di RTI e consorzi costituendi, la presente Offerta Economica deve essere sottoscritta da tutti gli operatori raggruppati o consorziati )"]
[]
[]
[null,"operatore economico",null,null,null,"sottoscrizione"]
[]
[]
[]
[null,"operatore economico",null,null,null,"sottoscrizione"]
[]
[]
[]
[null,"operatore economico",null,null,null,"sottoscrizione"]
[]
[]
[]
[null,"operatore economico",null,null,null,"sottoscrizione"]